Workbook

Sheet Full Service
A2: 2023
A3: Nellie's Horse Boarding Operation (Full Service)
E4: 20 | F4: Horses
E5: 0.9 | F5: Occupancy Rate
A8: ITEM | E8: UNIT | F8: PRICE | H8: QUANTITY | I8: TOTAL | J8: Your Estimate
A9: 1. GROSS RECEIPTS | H9: Months
A10: Number Boarded | B10: =E4*E5-B12 -> 18 | C10: Head | D10: 12 | E10: Months | F10: 500 | G10: Per Month | H10: =D10 -> 12 | I10: =B10*F10*H10 -> 108000 | J10: __________
A11: Lessons | B11: 0 | C11: /month | D11: 12 | E11: Months | F11: 35 | G11: Per Lesson | H11: =D11 -> 12 | I11: =B11*F11*H11 -> 0 | J11: __________
A12: Training | B12: 0 | C12: /month | D12: 12 | E12: Months | F12: 800 | G12: Per Horse | H12: =D12 -> 12 | I12: =B12*F12*H12 -> 0 | J12: __________
A13: Other: ________________ | B13: 0 | C13: /unit | D13: 0 | E13: Months | F13: 0 | G13: Per Unit | H13: =D13 -> 0 | I13: =B13*F13*H13 -> 0 | J13: __________
A14: 2. TOTAL GROSS RECEIPTS | I14: =SUM(I10:I12) -> 108000 | J14: __________
A15: 3. VARIABLE COSTS
B16: Feed Loss
A17: =A64 -> Alfalfa Hay | B17: 0.05 | E17: =IF(C64>99,"Cwt",IF(C64>0,"Bushel","Ton")) -> Ton | F17: 225 | H17: =IF(C64<=0,(J64*(1+B17)),(J64*2000)/C64*(1+B17)) -> 0 | I17: =F17*H17 -> 0 | J17: __________
A18: Timothy Hay | B18: 0.05 | E18: =IF(C65>99,"Cwt",IF(C65>0,"Bushel","Ton")) -> Ton | F18: 180 | H18: =IF(C65=0,(J65*(1+B18)),(J65*2000)/C65*(1+B18)) -> 0 | I18: 0 | J18: __________
A19: Mixed Hay | B19: 0.05 | E19: Ton | F19: 175 | H19: 0 | I19: 0 | J19: __________
A20: Grass Hay | B20: 0.05 | E20: Ton | F20: 185 | H20: 56.912625 | I20: 10528.83563 | J20: __________
A21: Mixed Feed | B21: 0.02 | E21: Ton | F21: 480 | H21: 18.42885 | I21: 8845.848 | J21: __________
A22: Rolled Oats | B22: 0.02 | E22: Cwt | F22: 24 | H22: 0 | I22: 0 | J22: __________
A23: Other Feed | B23: 0.05 | E23: Ton | F23: 0 | H23: 0 | I23: 0 | J23: __________
A24: Grinding & Mixing | E24: Cwt | F24: 1.4 | H24: 0 | I24: 0 | J24: __________
A25: Salt & Mineral | B25: 91 | C25: Lbs per Horse | E25: Cwt | F25: 30 | H25: =B25/100*E4 -> 18.2 | I25: 546 | J25: __________
A26: Vet & Medicine | C26: $/Horse | E26: Head | F26: =J99 -> 156.22 | H26: =$E$4 -> 20 | I26: =IF(B26=N(ISNUMBER(B26)),ROUND((F26*H26),2),ROUND((B26*H26),2)) -> 3124.4 | J26: __________
A27: Farrier | B27: 8 | C27: Trips/year | E27: Trip | F27: =B40*50 -> 0 | H27: =B40 -> 0 | I27: =IF(B27=N(ISNUMBER(B27)),ROUND((F27*H27),2),ROUND((B27*F27),2)) -> 0 | J27: __________
A28: Supplies | E28: Head | F28: 27 | H28: =$E$4 -> 20 | I28: 540 | J28: __________
A29: Replacement Tack | B29: 0.15 | C29: Annually | E29: Head | F29: =IF(B40=0,0,D76*B29/B40) -> 0 | H29: =B40 -> 0 | I29: =F29*H29 -> 0 | J29: __________
A30: Pasture Rent | C30: Acres per Horse | E30: Acre | F30: 21 | H30: =B30*(E$4+B$40) -> 0 | I30: =F30*H30 -> 0 | J30: __________
A31: Pasture Clipping | B31: 0.2 | C31: Acres per Horse | E31: Acre | F31: 17.5 | H31: =B31*(E$4+B$40) -> 4 | I31: =F31*H31 -> 70 | J31: __________
A32: Fertilizer & Lime | B32: 2 | C32: Acres per Horse | E32: Acre | F32: 32 | H32: =B32*(B$40) -> 0 | I32: 0 | J32: __________
A33: Building & Fence Repairs | B33: 0.05 | C33: of Facility Value | E33: Head | F33: =(($D$77+$D$79)*B33)/$E$4 -> 210 | H33: =$E$4 -> 20 | I33: =F33*H33 -> 4200 | J33: __________
A34: Haul to Ride | E34: Miles | F34: 0.48 | H34: 0 | I34: 0 | J34: __________
A35: Utilities | E35: Head | F35: 60 | H35: =$E$4 -> 20 | I35: 1200 | J35: __________
A36: Insurance - horses | B36: 0.1 | C36: of Value | E36: Head | F36: =((((SUM(D75:D82))-($D$78+$D$79))*B36)/$E$4) -> 570 | H36: =B40 -> 0 | I36: 0 | J36: __________
A37: Bedding | E37: Head | F37: 200 | H37: =$E$4 -> 20 | I37: 4000 | J37: __________
A38: Property Insurance | E38: Year | F38: 2000 | H38: 1 | I38: 2000 | J38: __________
A39: Liability Insurance | B39: 2 | C39: Millions of Coverage | E39: Per Mil $ | F39: 500 | H39: =B39 -> 2 | I39: 1000 | J39: __________
A40: Lessons Horses Upkeep | B40: 0 | C40: Horses | E40: Head | F40: 2400 | H40: =B40 -> 0 | I40: 0 | J40: __________
A41: Other: Marketing/Advertising | E41: Year | F41: 1500 | H41: 1 | I41: 1500 | J41: __________
A42: Other: ________________ | E42: Head | F42: 0 | H42: =$E$4 -> 20 | I42: 0 | J42: __________
A43: Labor | B43: 300 | C43: Hours per Horse | E43: Hours | F43: 10 | H43: =E4*B43*E5 -> 5400 | I43: 54000 | J43: __________
A44: Unexpected Expenses | B44: 0.05 | C44: of variable costs (except labor) | H44: =SUM(I17:I42) -> 37555.08362 | I44: =B44*H44 -> 1877.754181 | J44: __________
A45: Operating Interest | B45: 6 | C45: Months | E45: Dollars | F45: 0.06 | H45: =ROUND(SUM(I17:I44),0) -> 93433 | I45: =B45/12*F45*H45 -> 2802.99 | J45: __________
A47: 4. TOTAL VARIABLE COSTS | I47: =SUM(I17:I45) -> 96235.82781 | J47: __________
A48: 5. RETURN ABOVE VARIABLE COSTS | I48: =I14-I47 -> 11764.17219 | J48: __________
A49: 6. ANNUAL OVERHEAD COSTS | I49: 20000 | J49: __________
A50: 7. TOTAL COSTS | I50: =I47+I49 -> 116235.8278
A51: 8. RETURN ABOVE TOTAL COSTS | I51: =I14-I47-I49 -> -8235.827806 | J51: __________
A54: NOTE: This budget is for the stable owner.
A55: Developed by Virginia Cooperative Extension Farm Business Management Staff
A58: =A3 -> Nellie's Horse Boarding Operation (Full Service) | J58: Page 2
A59: 8. FEED RATIONS
D60: Horses | J60: Total
B61: Number Head = | D61: =$E$4*E5 -> 18 | J61: Quantity
A62: Feed | B62: Days Fed = | D62: 365 | E62: 0 | F62: 0 | G62: 0 | H62: 0 | I62: 0 | J62: (Tons)
C63: Unit
A64: Alfalfa Hay | B64: Lbs/Head/Day | D64: 0 | E64: 0 | F64: 0 | G64: 0 | H64: 0 | I64: 0 | J64: =(($E$61*$E$62*E64)+($F$61*$F$62*F64)+($G$61*$G$62*G64)+($H$61*$H$62*H64)+($I$61*$I$62*I64)+($D$61*$D$62*D64))/2000 -> 0
A65: Timothy Hay | B65: Lbs/Head/Day | D65: 0 | E65: 0 | F65: 0 | G65: 0 | H65: 0 | I65: 0 | J65: 0
A66: Mixed Hay | B66: Lbs/Head/Day | D66: 0 | E66: 0 | F66: 0 | G66: 0 | H66: 0 | I66: 0 | J66: 0
A67: Grass Hay | B67: Lbs/Head/Day | D67: 16.5 | E67: 0 | F67: 0 | G67: 0 | H67: 0 | I67: 0 | J67: 54.2025
A68: Mixed Feed | B68: Lbs/Head/Day | D68: 5.5 | E68: 0 | F68: 0 | G68: 0 | H68: 0 | I68: 0 | J68: 18.0675
A69: Rolled Oats | B69: Lbs/Head/Day | C69: 100 | D69: 0 | E69: 0 | F69: 0 | G69: 0 | H69: 0 | I69: 0 | J69: 0
A70: Other Feed | B70: Lbs/Head/Day | D70: 0 | E70: 0 | F70: 0 | G70: 0 | H70: 0 | I70: 0 | J70: 0
A72: 9. ANNUAL DEBT SERVICE | D72: Amount | F72: Percent | H72: Length | I72: Percent | J72: Annual
A73: Item | D73: Borrowed | F73: Interest | H73: of Loan | I73: to Horse | J73: Payment
A75: Lessons Horses | B75: 4000 | C75: /horse | D75: =B40*B75 -> 0 | F75: 0.06 | H75: 4 | I75: 1 | J75: =(IF(H75>0,PMT(F75,H75,-D75),0))*(I75) -> 0
A76: Tack | D76: 0 | F76: 0.06 | H76: 0 | I76: 1 | J76: =(IF(H76>0,PMT(F76,H76,-D76),0))*(I76) -> 0
A77: Barn | D77: =(25000+($E$4*2500)) -> 75000 | F77: 0.06 | H77: 20 | I77: 1 | J77: 6538.841773
A78: Land | D78: =(10000+($E$4*3000)) -> 70000 | F78: 0.06 | H78: 20 | I78: 1 | J78: 6102.918988
A79: Fencing | D79: =(3000+($E$4*300)) -> 9000 | F79: 0.06 | H79: 7 | I79: 1 | J79: 1612.215163
A80: Truck | D80: 30000 | F80: 0.06 | H80: 5 | I80: 1 | J80: =(IF(H80>0,PMT(F80,H80,-D80),0))*(I80) -> 7121.892013
A81: Trailer | D81: 9000 | F81: 0.06 | H81: 5 | I81: 1 | J81: 2136.567604
A83: TOTAL DEBT | D83: =SUM(D74:D82) -> 193000 | F83: TOTAL ANNUAL DEBT PAYMENTS | J83: =SUM(J74:J82) -> 23512.43554
A84: 10. ANIMAL HEALTH PROGRAM
A85: =E4 -> 20 | B85: Horses | D85: Health Program Provided by Owners
A86: Fly Spray | D86: 4 | E86: Pts @ | F86: 18.95 | G86: /Pt. | I86: =D86*F86 -> 75.8
A87: Deworming | B87: 1150 | C87: Lbs | D87: 4 | E87: Dose @ | F87: =9.75/23*B87/50 -> 9.75 | G87: /Dose | I87: 39
A88: E/W Flu tetanus | D88: 1 | E88: Dose @ | F88: 20.41 | G88: /Dose | I88: 20.41
A89: West Nile Vaccine | D89: 1 | E89: Dose @ | F89: 18.63 | G89: /Dose | I89: 18.63
A90: Rabies Vaccination | D90: 1 | E90: Dose @ | F90: 2.38 | G90: /Dose | I90: 2.38
D91: 0 | E91: Dose @ | F91: 0 | G91: /Dose | I91: 0
A92: EIA/Coggins | D92: 0 | E92: Test @ | F92: 15 | G92: /Test | I92: 0
B94: SUB-TOTAL HORSES | J94: =ROUND(SUM(I86:I93),2) -> 156.22
A97: Your Farm Veterinarian | D97: 0 | E97: Trip(s) @ | F97: 250 | G97: Per Trip | H97: . | J97: =D97*F97 -> 0
A99: TOTAL HEALTH COST FOR HERD = | C99: . | J99: =J94+J96+J97 -> 156.22
F101: Trade and brand names are used only for the purpose of providing information. Virginia Cooperative Extension does not guarantee or warrant
A102: the standard of any product named to the exclusion of others which also may be suitable.
